[Event "Early-Titled-Tuesday-Blitz-October-03-2023"]
[Site "Chess.com"]
[Date "2023.10.03"]
[Round "4"]
[White "Fantastic_Power"]
[Black "rasmussvane"]
[Result "1-0"]
[WhiteElo "2779"]
[BlackElo "2951"]
[TimeControl "180+1"]
[EndTime "8:41:31 PDT"]
[Termination "Fantastic_Power won on time"]

1. e4 {[%clk 0:03:00.9]} 1... c6 {[%clk 0:02:59.2]} 2. d4 {[%clk 0:03:01.1]}
2... d5 {[%clk 0:03:00.1]} 3. e5 {[%clk 0:03:01.8]} 3... Bf5 {[%clk 0:03:00.1]}
4. h4 {[%clk 0:03:02.2]} 4... h5 {[%clk 0:02:59.7]} 5. c4 {[%clk 0:03:02.1]}
5... e6 {[%clk 0:02:59.6]} 6. Nc3 {[%clk 0:03:02.8]} 6... Nd7 {[%clk 0:02:55.7]}
7. cxd5 {[%clk 0:03:02.8]} 7... cxd5 {[%clk 0:02:55.6]} 8. Bd3 {[%clk
0:03:03.5]} 8... Ne7 {[%clk 0:02:51.1]} 9. Nge2 {[%clk 0:03:01.2]} 9... Bxd3
{[%clk 0:02:49.9]} 10. Qxd3 {[%clk 0:03:02.1]} 10... g6 {[%clk 0:02:28.8]} 11.
Bg5 {[%clk 0:03:00.6]} 11... Qb6 {[%clk 0:02:28.2]} 12. O-O {[%clk 0:02:42.7]}
12... Nf5 {[%clk 0:02:24.3]} 13. Rac1 {[%clk 0:02:35.5]} 13... Bg7 {[%clk
0:02:04.8]} 14. Na4 {[%clk 0:02:18.4]} 14... Qb4 {[%clk 0:02:01.3]} 15. Qc3
{[%clk 0:02:00.5]} 15... Qxc3 {[%clk 0:01:55.5]} 16. Rxc3 {[%clk 0:02:01.4]}
16... Nb6 {[%clk 0:01:41.1]} 17. Nxb6 {[%clk 0:01:39.1]} 17... axb6 {[%clk
0:01:40.4]} 18. Rfc1 {[%clk 0:01:40]} 18... O-O {[%clk 0:01:36.5]} 19. a3 {[%clk
0:01:39.2]} 19... Ra4 {[%clk 0:01:28]} 20. Rc7 {[%clk 0:01:23.5]} 20... Nxd4
{[%clk 0:01:23.6]} 21. Nxd4 {[%clk 0:01:24]} 21... Rxd4 {[%clk 0:01:24.5]} 22.
Rxb7 {[%clk 0:01:24.6]} 22... Bxe5 {[%clk 0:01:22]} 23. Rxb6 {[%clk 0:01:24.9]}
23... Kg7 {[%clk 0:01:11.2]} 24. g3 {[%clk 0:01:20.3]} 24... Rc4 {[%clk
0:01:00.5]} 25. Rxc4 {[%clk 0:01:00.7]} 25... dxc4 {[%clk 0:01:01.4]} 26. Rc6
{[%clk 0:00:42.8]} 26... Bxb2 {[%clk 0:00:58.3]} 27. Be7 {[%clk 0:00:43.1]}
27... Ra8 {[%clk 0:00:54.2]} 28. Rxc4 {[%clk 0:00:37.1]} 28... Bxa3 {[%clk
0:00:54.4]} 29. Bxa3 {[%clk 0:00:36.8]} 29... Rxa3 {[%clk 0:00:55.3]} 30. Kg2
{[%clk 0:00:37.2]} 30... Ra5 {[%clk 0:00:55.6]} 31. Rf4 {[%clk 0:00:37]} 31...
Rb5 {[%clk 0:00:55.9]} 32. Rc4 {[%clk 0:00:37.2]} 32... Rd5 {[%clk 0:00:56.2]}
33. Rc7 {[%clk 0:00:37.7]} 33... Rd3 {[%clk 0:00:56.5]} 34. Ra7 {[%clk 0:00:38]}
34... Rb3 {[%clk 0:00:56.7]} 35. Rc7 {[%clk 0:00:38.2]} 35... Rb6 {[%clk
0:00:56.8]} 36. Ra7 {[%clk 0:00:38.3]} 36... Rd6 {[%clk 0:00:57.4]} 37. Rc7
{[%clk 0:00:38.2]} 37... Ra6 {[%clk 0:00:58]} 38. Rb7 {[%clk 0:00:38.6]} 38...
Kf6 {[%clk 0:00:58.6]} 39. Rc7 {[%clk 0:00:39]} 39... Rd6 {[%clk 0:00:58.9]} 40.
Ra7 {[%clk 0:00:39]} 40... Rd5 {[%clk 0:00:59.6]} 41. Rb7 {[%clk 0:00:39.3]}
41... Rc5 {[%clk 0:00:59.7]} 42. Ra7 {[%clk 0:00:39.6]} 42... Rb5 {[%clk
0:01:00.2]} 43. Rc7 {[%clk 0:00:39.8]} 43... Rb6 {[%clk 0:00:59.5]} 44. Ra7
{[%clk 0:00:39.9]} 44... e5 {[%clk 0:00:57.5]} 45. Rc7 {[%clk 0:00:39.6]} 45...
Ke6 {[%clk 0:00:57.9]} 46. Ra7 {[%clk 0:00:39.3]} 46... f6 {[%clk 0:00:58.5]}
47. Kf3 {[%clk 0:00:38.4]} 47... Kf5 {[%clk 0:00:59]} 48. Rg7 {[%clk 0:00:37.4]}
48... Rb3+ {[%clk 0:00:58.8]} 49. Kg2 {[%clk 0:00:37.5]} 49... Rb8 {[%clk
0:00:58.9]} 50. Rh7 {[%clk 0:00:36.6]} 50... Rg8 {[%clk 0:00:58.5]} 51. Rh6
{[%clk 0:00:30.5]} 51... e4 {[%clk 0:00:53.3]} 52. Rh7 {[%clk 0:00:28.6]} 52...
Kg4 {[%clk 0:00:50.2]} 53. Re7 {[%clk 0:00:22.5]} 53... Kf5 {[%clk 0:00:50.5]}
54. Rh7 {[%clk 0:00:22.3]} 54... Rd8 {[%clk 0:00:50.2]} 55. Re7 {[%clk
0:00:18.3]} 55... Rd2 {[%clk 0:00:50.1]} 56. Re8 {[%clk 0:00:18.2]} 56... Rc2
{[%clk 0:00:48.5]} 57. Re7 {[%clk 0:00:18.5]} 57... Rc3 {[%clk 0:00:48.2]} 58.
Re8 {[%clk 0:00:18.5]} 58... Rc7 {[%clk 0:00:44.7]} 59. Rh8 {[%clk 0:00:15.7]}
59... Re7 {[%clk 0:00:43.2]} 60. Rf8 {[%clk 0:00:11.6]} 60... Re6 {[%clk
0:00:42.6]} 61. Rf7 {[%clk 0:00:09.5]} 61... Kg4 {[%clk 0:00:36.6]} 62. Rg7
{[%clk 0:00:09.9]} 62... f5 {[%clk 0:00:33.9]} 63. Rf7 {[%clk 0:00:07]} 63...
Rd6 {[%clk 0:00:30]} 64. Rf8 {[%clk 0:00:07.4]} 64... Rc6 {[%clk 0:00:22.7]} 65.
Rf7 {[%clk 0:00:07.3]} 65... Rb6 {[%clk 0:00:21.7]} 66. Rf8 {[%clk 0:00:07.6]}
66... Ra6 {[%clk 0:00:22.3]} 67. Rf7 {[%clk 0:00:08]} 67... Re6 {[%clk
0:00:22.5]} 68. Rf8 {[%clk 0:00:08.1]} 68... Re7 {[%clk 0:00:21]} 69. Rg8 {[%clk
0:00:08.4]} 69... Re6 {[%clk 0:00:16.9]} 70. Rf8 {[%clk 0:00:08.5]} 70... Ra6
{[%clk 0:00:16.4]} 71. Rg8 {[%clk 0:00:08]} 71... f4 {[%clk 0:00:14.2]} 72. Re8
{[%clk 0:00:04.4]} 72... f3+ {[%clk 0:00:04.9]} 73. Kh2 {[%clk 0:00:05]} 73...
Kf5 {[%clk 0:00:03.9]} 74. Rf8+ {[%clk 0:00:02.8]} 74... Ke5 {[%clk 0:00:04.2]}
75. g4 {[%clk 0:00:02.9]} 75... Ra1 {[%clk 0:00:02.8]} 76. Kg3 {[%clk
0:00:03.8]} 1-0

[Event "Early-Titled-Tuesday-Blitz-October-03-2023"]
[Site "Chess.com"]
[Date "2023.10.03"]
[Round "4"]
[White "Goi_Manne"]
[Black "Triumphmate"]
[Result "1/2-1/2"]
[WhiteElo "2295"]
[BlackElo "2471"]
[TimeControl "180+1"]
[EndTime "8:41:40 PDT"]
[Termination "Game drawn - insufficient material"]

1. e4 {[%clk 0:03:00.9]} 1... d5 {[%clk 0:02:56]} 2. exd5 {[%clk 0:03:00.1]}
2... Nf6 {[%clk 0:02:56]} 3. Nc3 {[%clk 0:02:58.5]} 3... Bg4 {[%clk 0:02:55.8]}
4. Be2 {[%clk 0:02:58.3]} 4... Bxe2 {[%clk 0:02:55.5]} 5. Qxe2 {[%clk
0:02:54.3]} 5... c6 {[%clk 0:02:55.9]} 6. Nf3 {[%clk 0:02:52.5]} 6... cxd5
{[%clk 0:02:51.2]} 7. d4 {[%clk 0:02:50.5]} 7... Nc6 {[%clk 0:02:49.7]} 8. Be3
{[%clk 0:02:46.1]} 8... e6 {[%clk 0:02:45.4]} 9. a3 {[%clk 0:02:44.6]} 9... Be7
{[%clk 0:02:44.4]} 10. O-O-O {[%clk 0:02:41.5]} 10... O-O {[%clk 0:02:33.9]} 11.
h4 {[%clk 0:02:41.4]} 11... b5 {[%clk 0:02:33.9]} 12. Qxb5 {[%clk 0:02:31.1]}
12... Na5 {[%clk 0:02:31.1]} 13. Ne5 {[%clk 0:02:27.8]} 13... Rb8 {[%clk
0:02:30.5]} 14. Qd3 {[%clk 0:02:24.8]} 14... Nc4 {[%clk 0:02:18.8]} 15. Nxc4
{[%clk 0:02:21.8]} 15... dxc4 {[%clk 0:02:19.7]} 16. Qxc4 {[%clk 0:02:20.7]}
16... Qa5 {[%clk 0:02:19.8]} 17. d5 {[%clk 0:01:34.3]} 17... Rfc8 {[%clk
0:02:11]} 18. Qa4 {[%clk 0:01:33.8]} 18... Qxa4 {[%clk 0:02:09.6]} 19. Nxa4
{[%clk 0:01:33.8]} 19... Nxd5 {[%clk 0:02:10.5]} 20. Bxa7 {[%clk 0:01:22.3]}
20... Rb7 {[%clk 0:02:05.6]} 21. Bd4 {[%clk 0:01:21.2]} 21... Rc4 {[%clk
0:02:01]} 22. Nc3 {[%clk 0:01:14.5]} 22... Nf6 {[%clk 0:01:49]} 23. Rd3 {[%clk
0:00:59.1]} 23... h5 {[%clk 0:01:47.5]} 24. Rhd1 {[%clk 0:00:58.8]} 24... Kh7
{[%clk 0:01:43.8]} 25. g3 {[%clk 0:00:59]} 25... Ng4 {[%clk 0:01:40.9]} 26. f3
{[%clk 0:00:53.9]} 26... Nf6 {[%clk 0:01:36.2]} 27. Ne4 {[%clk 0:00:47.1]} 27...
Nd5 {[%clk 0:01:33.9]} 28. Ng5+ {[%clk 0:00:47.4]} 28... Bxg5+ {[%clk
0:01:33.5]} 29. hxg5 {[%clk 0:00:48.3]} 29... Kg6 {[%clk 0:01:33.4]} 30. f4
{[%clk 0:00:47.5]} 30... Ne7 {[%clk 0:01:32.4]} 31. Rc3 {[%clk 0:00:46.2]} 31...
Ra4 {[%clk 0:01:29.2]} 32. Rdd3 {[%clk 0:00:44.8]} 32... Nf5 {[%clk 0:01:28.7]}
33. Be5 {[%clk 0:00:44.9]} 33... Re4 {[%clk 0:01:26.5]} 34. b4 {[%clk
0:00:40.6]} 34... f6 {[%clk 0:01:16]} 35. gxf6 {[%clk 0:00:40.8]} 35... gxf6
{[%clk 0:01:16.3]} 36. Bd6 {[%clk 0:00:35.8]} 36... Nd4 {[%clk 0:00:58.2]} 37.
Kb2 {[%clk 0:00:29.4]} 37... Nb5 {[%clk 0:00:56.9]} 38. Rb3 {[%clk 0:00:26.4]}
38... Kf5 {[%clk 0:00:51]} 39. a4 {[%clk 0:00:25.2]} 39... Nxd6 {[%clk
0:00:49.9]} 40. Rxd6 {[%clk 0:00:26.1]} 40... Rbxb4 {[%clk 0:00:47.6]} 41. Rxb4
{[%clk 0:00:26]} 41... Rxb4+ {[%clk 0:00:48.4]} 42. Ka3 {[%clk 0:00:26.9]} 42...
Rc4 {[%clk 0:00:47.7]} 43. Kb3 {[%clk 0:00:27.2]} 43... Rc5 {[%clk 0:00:48.1]}
44. c4 {[%clk 0:00:25.8]} 44... e5 {[%clk 0:00:45.6]} 45. fxe5 {[%clk
0:00:26.7]} 45... fxe5 {[%clk 0:00:45.9]} 46. Rd8 {[%clk 0:00:25.2]} 46... Rc7
{[%clk 0:00:17.4]} 47. Kb4 {[%clk 0:00:24.9]} 47... e4 {[%clk 0:00:17.6]} 48. a5
{[%clk 0:00:24.3]} 48... Re7 {[%clk 0:00:14.5]} 49. a6 {[%clk 0:00:22.4]} 49...
e3 {[%clk 0:00:14.7]} 50. Rd1 {[%clk 0:00:23]} 50... Kg4 {[%clk 0:00:14.1]} 51.
Kb5 {[%clk 0:00:20.4]} 51... Kxg3 {[%clk 0:00:12.9]} 52. c5 {[%clk 0:00:18.6]}
52... e2 {[%clk 0:00:11.2]} 53. Ra1 {[%clk 0:00:18.5]} 53... e1=Q {[%clk
0:00:07]} 54. Rxe1 {[%clk 0:00:19.2]} 54... Rxe1 {[%clk 0:00:07.1]} 55. a7
{[%clk 0:00:20.1]} 55... Ra1 {[%clk 0:00:06.8]} 56. Kb6 {[%clk 0:00:20.8]} 56...
h4 {[%clk 0:00:06.4]} 57. c6 {[%clk 0:00:19.6]} 57... h3 {[%clk 0:00:06.9]} 58.
c7 {[%clk 0:00:20.1]} 58... h2 {[%clk 0:00:06.5]} 59. c8=Q {[%clk 0:00:20.3]}
59... h1=Q {[%clk 0:00:07.4]} 60. Qg8+ {[%clk 0:00:20.2]} 60... Kf2 {[%clk
0:00:07.3]} 61. Qf7+ {[%clk 0:00:20.5]} 61... Ke3 {[%clk 0:00:07.6]} 62. Qe6+
{[%clk 0:00:20.7]} 62... Kd2 {[%clk 0:00:07.7]} 63. Qd6+ {[%clk 0:00:20.7]}
63... Kc3 {[%clk 0:00:07.6]} 64. Qc5+ {[%clk 0:00:21]} 64... Kb3 {[%clk
0:00:07.3]} 65. Qb5+ {[%clk 0:00:21]} 65... Kc3 {[%clk 0:00:07.8]} 66. Qc5+
{[%clk 0:00:21.1]} 66... Kd2 {[%clk 0:00:07.8]} 67. Qd4+ {[%clk 0:00:21.4]}
67... Ke2 {[%clk 0:00:07.8]} 68. Qc4+ {[%clk 0:00:21.3]} 68... Ke3 {[%clk
0:00:07.1]} 69. Qc3+ {[%clk 0:00:21.5]} 69... Kf4 {[%clk 0:00:07.5]} 70. Qd4+
{[%clk 0:00:21.6]} 70... Kf5 {[%clk 0:00:07.5]} 71. Qd7+ {[%clk 0:00:21.6]}
71... Kf6 {[%clk 0:00:07.6]} 72. Qd6+ {[%clk 0:00:21.7]} 72... Kg7 {[%clk
0:00:07.4]} 73. Qe7+ {[%clk 0:00:21.8]} 73... Kg6 {[%clk 0:00:07.7]} 74. Qe6+
{[%clk 0:00:21.7]} 74... Kg5 {[%clk 0:00:07.9]} 75. Qe5+ {[%clk 0:00:21.5]}
75... Kg4 {[%clk 0:00:08.3]} 76. Qg7+ {[%clk 0:00:21.6]} 76... Kh3 {[%clk
0:00:07.9]} 77. Qh6+ {[%clk 0:00:21.6]} 77... Kg2 {[%clk 0:00:08.3]} 78. Qxh1+
{[%clk 0:00:19.2]} 78... Kxh1 {[%clk 0:00:08.8]} 79. Kb7 {[%clk 0:00:19.8]}
79... Rxa7+ {[%clk 0:00:09]} 80. Kxa7 {[%clk 0:00:20.7]} 1/2-1/2

[Event "Early-Titled-Tuesday-Blitz-October-03-2023"]
[Site "Chess.com"]
[Date "2023.10.03"]
[Round "4"]
[White "ArtemDyachuk"]
[Black "HajiyevKanan"]
[Result "0-1"]
[WhiteElo "2672"]
[BlackElo "2530"]
[TimeControl "180+1"]
[EndTime "8:41:51 PDT"]
[Termination "HajiyevKanan won by resignation"]

1. e4 {[%clk 0:03:00.9]} 1... c6 {[%clk 0:03:00.1]} 2. d4 {[%clk 0:03:00.2]}
2... d5 {[%clk 0:03:01]} 3. e5 {[%clk 0:03:00.4]} 3... a6 {[%clk 0:03:01.8]} 4.
Nd2 {[%clk 0:02:57.1]} 4... Bf5 {[%clk 0:03:01.6]} 5. Nb3 {[%clk 0:02:56.6]}
5... e6 {[%clk 0:03:01.9]} 6. a4 {[%clk 0:02:51.3]} 6... Nd7 {[%clk 0:03:01]} 7.
a5 {[%clk 0:02:51.3]} 7... c5 {[%clk 0:03:00.2]} 8. Nf3 {[%clk 0:02:45.8]} 8...
c4 {[%clk 0:02:57.3]} 9. Nbd2 {[%clk 0:02:45.2]} 9... Bb4 {[%clk 0:02:57.4]} 10.
c3 {[%clk 0:02:43]} 10... Bxa5 {[%clk 0:02:57.2]} 11. Nh4 {[%clk 0:02:42.6]}
11... Ne7 {[%clk 0:02:56]} 12. Be2 {[%clk 0:02:19.6]} 12... Bg6 {[%clk
0:02:49.4]} 13. O-O {[%clk 0:02:18]} 13... Bc7 {[%clk 0:02:45.6]} 14. h3 {[%clk
0:02:09.8]} 14... Nf5 {[%clk 0:02:39.3]} 15. Nxg6 {[%clk 0:02:09.1]} 15... hxg6
{[%clk 0:02:40.2]} 16. Nf3 {[%clk 0:02:09.1]} 16... Qb8 {[%clk 0:02:32.9]} 17.
b3 {[%clk 0:02:05]} 17... cxb3 {[%clk 0:02:32.7]} 18. Ba3 {[%clk 0:02:04.3]}
18... Bd8 {[%clk 0:02:31.8]} 19. Qxb3 {[%clk 0:02:00.9]} 19... Be7 {[%clk
0:02:31.5]} 20. Bxe7 {[%clk 0:02:00.5]} 20... Nxe7 {[%clk 0:02:30.5]} 21. Qa3
{[%clk 0:02:00.1]} 21... Qd8 {[%clk 0:02:29.9]} 22. Rfb1 {[%clk 0:01:57.1]}
22... Rb8 {[%clk 0:02:23]} 23. Rb3 {[%clk 0:01:55.4]} 23... O-O {[%clk
0:02:22.2]} 24. Rab1 {[%clk 0:01:55.1]} 24... b5 {[%clk 0:01:37.9]} 25. Qxa6
{[%clk 0:01:50.7]} 25... Qb6 {[%clk 0:01:33.6]} 26. Qxb6 {[%clk 0:01:48.9]}
26... Rxb6 {[%clk 0:01:32.8]} 27. Bxb5 {[%clk 0:01:48.6]} 27... Rfb8 {[%clk
0:01:32.3]} 28. Ba4 {[%clk 0:01:41.8]} 28... Rxb3 {[%clk 0:01:26]} 29. Rxb3
{[%clk 0:01:40.9]} 29... Rxb3 {[%clk 0:01:24.4]} 30. Bxb3 {[%clk 0:01:41.8]}
30... Nb6 {[%clk 0:01:23.4]} 31. Nd2 {[%clk 0:01:39.9]} 31... Nc6 {[%clk
0:01:20.9]} 32. Kf1 {[%clk 0:01:38.7]} 32... f6 {[%clk 0:01:21.4]} 33. exf6
{[%clk 0:01:23]} 33... gxf6 {[%clk 0:01:22.3]} 34. Ke2 {[%clk 0:01:23]} 34...
Kf7 {[%clk 0:01:20.7]} 35. Kd3 {[%clk 0:01:17.4]} 35... Ke7 {[%clk 0:01:20.3]}
36. Nf1 {[%clk 0:01:09]} 36... Na5 {[%clk 0:01:19]} 37. Ba2 {[%clk 0:01:08.9]}
37... Nac4 {[%clk 0:01:18.8]} 38. Ne3 {[%clk 0:01:03.2]} 38... Nxe3 {[%clk
0:01:09.3]} 39. fxe3 {[%clk 0:01:04.1]} 39... Kd6 {[%clk 0:01:07.8]} 40. Bb3
{[%clk 0:00:57.6]} 40... g5 {[%clk 0:01:07.9]} 41. Ke2 {[%clk 0:00:48.9]} 41...
e5 {[%clk 0:01:08.2]} 42. Kd3 {[%clk 0:00:44]} 42... f5 {[%clk 0:01:04.7]} 43.
Ke2 {[%clk 0:00:27.4]} 43... e4 {[%clk 0:01:02.4]} 44. g3 {[%clk 0:00:23.9]}
44... Ke6 {[%clk 0:00:58.7]} 45. Kf2 {[%clk 0:00:21]} 45... Kf6 {[%clk
0:00:54.1]} 46. h4 {[%clk 0:00:20.8]} 46... Kg6 {[%clk 0:00:52.1]} 47. Ba2
{[%clk 0:00:15.4]} 47... Kf6 {[%clk 0:00:52.1]} 48. Bb3 {[%clk 0:00:12.6]} 48...
Kg6 {[%clk 0:00:52.5]} 49. Kg2 {[%clk 0:00:12.1]} 49... Kh5 {[%clk 0:00:52.9]}
50. Bd1+ {[%clk 0:00:10.7]} 50... Kg6 {[%clk 0:00:49.8]} 51. Bb3 {[%clk
0:00:09.4]} 51... Kf6 {[%clk 0:00:49]} 52. hxg5+ {[%clk 0:00:08.2]} 52... Kxg5
{[%clk 0:00:49.3]} 53. Kh3 {[%clk 0:00:08.4]} 53... Kh5 {[%clk 0:00:49.1]} 54.
Ba2 {[%clk 0:00:07.7]} 54... Kg5 {[%clk 0:00:49.1]} 55. Bb3 {[%clk 0:00:08]}
55... Kh5 {[%clk 0:00:49.3]} 56. g4+ {[%clk 0:00:07.4]} 56... fxg4+ {[%clk
0:00:48]} 57. Kg3 {[%clk 0:00:07.6]} 57... Kg5 {[%clk 0:00:48.6]} 58. Bd1 {[%clk
0:00:07.6]} 58... Nc4 {[%clk 0:00:47.7]} 59. Bxg4 {[%clk 0:00:07.6]} 59... Nxe3
{[%clk 0:00:47.4]} 60. Be6 {[%clk 0:00:07.8]} 60... Kf6 {[%clk 0:00:32]} 61. Bg8
{[%clk 0:00:07.4]} 61... Kg7 {[%clk 0:00:25.7]} 62. Be6 {[%clk 0:00:06.7]} 62...
Kf6 {[%clk 0:00:26.4]} 63. Bc8 {[%clk 0:00:06.9]} 63... Nd1 {[%clk 0:00:23.9]}
64. Bb7 {[%clk 0:00:05.4]} 64... Nxc3 {[%clk 0:00:23.7]} 65. Kf4 {[%clk
0:00:06]} 65... Ke6 {[%clk 0:00:23.6]} 66. Bc8+ {[%clk 0:00:05.5]} 66... Kd6
{[%clk 0:00:24]} 67. Bg4 {[%clk 0:00:05.6]} 67... Nb5 {[%clk 0:00:23.4]} 68. Ke3
{[%clk 0:00:05.8]} 68... Na3 {[%clk 0:00:22.3]} 69. Kd2 {[%clk 0:00:06]} 69...
Nc4+ {[%clk 0:00:22.6]} 70. Kc3 {[%clk 0:00:06.4]} 70... Ne3 {[%clk 0:00:23.4]}
71. Be2 {[%clk 0:00:06.3]} 71... Nf5 {[%clk 0:00:23.8]} 72. Bg4 {[%clk
0:00:05.9]} 72... Ne3 {[%clk 0:00:22.5]} 73. Be2 {[%clk 0:00:05.8]} 73... Ke6
{[%clk 0:00:21.8]} 74. Kd2 {[%clk 0:00:05.3]} 74... Nc4+ {[%clk 0:00:20.8]} 75.
Kc3 {[%clk 0:00:05.6]} 75... Nd6 {[%clk 0:00:20.9]} 76. Kd2 {[%clk 0:00:05.4]}
76... Kf5 {[%clk 0:00:21.1]} 77. Ke3 {[%clk 0:00:05.5]} 77... Nc4+ {[%clk
0:00:21.1]} 78. Kf2 {[%clk 0:00:05.5]} 78... Kf4 {[%clk 0:00:20.4]} 79. Bf1
{[%clk 0:00:02.7]} 79... Ne3 {[%clk 0:00:20.6]} 80. Be2 {[%clk 0:00:02.6]} 80...
Nc2 {[%clk 0:00:20.5]} 81. Ba6 {[%clk 0:00:02.7]} 81... Nxd4 {[%clk 0:00:20.8]}
82. Bb7 {[%clk 0:00:03.6]} 82... Ke5 {[%clk 0:00:21.4]} 83. Ke3 {[%clk
0:00:03.8]} 83... Nf5+ {[%clk 0:00:20.8]} 84. Ke2 {[%clk 0:00:04.3]} 84... d4
{[%clk 0:00:21.4]} 85. Ba8 {[%clk 0:00:04.8]} 85... d3+ {[%clk 0:00:21.5]} 86.
Ke1 {[%clk 0:00:05]} 86... Kd4 {[%clk 0:00:22.2]} 87. Bb7 {[%clk 0:00:05.4]}
87... e3 {[%clk 0:00:22.2]} 88. Bf3 {[%clk 0:00:06]} 88... Nh4 {[%clk
0:00:21.9]} 89. Bg4 {[%clk 0:00:05.4]} 89... Ng6 {[%clk 0:00:22]} 90. Kd1 {[%clk
0:00:04.9]} 90... Ne5 {[%clk 0:00:22.9]} 91. Bh5 {[%clk 0:00:04.5]} 91... Nc4
{[%clk 0:00:23.1]} 92. Ke1 {[%clk 0:00:04.7]} 92... Nd6 {[%clk 0:00:21.5]} 93.
Kd1 {[%clk 0:00:04.5]} 93... Ne4 {[%clk 0:00:21.4]} 94. Ke1 {[%clk 0:00:04.2]}
94... Nc3 {[%clk 0:00:20.7]} 95. Bf3 {[%clk 0:00:03.1]} 95... d2+ {[%clk
0:00:20.1]} 96. Kf1 {[%clk 0:00:03.7]} 96... Kd3 {[%clk 0:00:20.6]} 97. Bd1
{[%clk 0:00:04.6]} 97... Nxd1 {[%clk 0:00:20.2]} 98. Kg2 {[%clk 0:00:04.9]}
98... e2 {[%clk 0:00:20.6]} 99. Kg3 {[%clk 0:00:05.8]} 99... e1=Q+ {[%clk
0:00:21.3]} 0-1